fUST/lending_fUST_20260303
["ID","MTS","AMOUNT","RATE_DAILY","PERIOD"]
[407170403,1772467850933,-500.0,0.00013698,2]
[407170405,1772467850943,-500.0,0.00013698,2]
[407170407,1772467850953,-500.0,0.00013698,2]
[407170409,1772467850976,-530.945678,0.00013698,2]
[407170411,1772467850986,-3399.94,0.00013698,2]
[407170413,1772467850996,-500.0,0.00013698,2]
[407170415,1772467851006,-2408.9,0.00013698,2]
[407170417,1772467851016,-500.0,0.00013698,2]
[407170419,1772467851025,-247.7311926,0.00013698,2]
[407170421,1772467851035,-500.0,0.00013698,2]
[407170423,1772467851046,-1585.5,0.00013698,2]
[407170425,1772467851055,-500.0,0.00013698,2]
[407170427,1772467851065,-500.0,0.00013698,2]
[407170429,1772467851074,-500.0,0.00013698,2]
[407170431,1772467851084,-2144.71,0.00013698,2]
[407170433,1772467851094,-530.17485383,0.00013698,2]
[407170435,1772467851103,-500.0,0.00013698,2]
[407170437,1772467851113,-1143.64,0.00013698,2]
[407170439,1772467851122,-535.86,0.00013698,2]
[407170441,1772467851132,-500.0,0.00013698,2]
[407170443,1772467851142,-727.57,0.00013698,2]
[407170445,1772467851153,-1307.78,0.00013698,2]
[407170447,1772467851163,-932.6,0.00013698,2]
[407170449,1772467851173,-2050.01,0.00013698,2]
[407170451,1772467851183,-1087.41,0.00013698,2]
[407170453,1772467851193,-1157.57,0.00013698,2]
[407170455,1772467851202,-350.37833898,0.00013698,2]
[407170457,1772467851211,-522.349421,0.00013698,2]
[407170459,1772467851221,-500.0,0.00013698,2]
[407170461,1772467851231,-500.0,0.00013698,2]
[407170463,1772467851241,-500.0,0.00013698,2]
[407170465,1772467851252,-500.0,0.00013698,2]
[407170467,1772467851261,-500.0,0.00013698,2]
[407170469,1772467851271,-530.26974695,0.00013698,2]
[407170471,1772467851280,-500.0,0.00013698,2]
[407170473,1772467851289,-500.0,0.00013698,2]
[407170474,1772467851299,-2717.36,0.00013698,2]
[407170477,1772467851308,-1741.01,0.00013698,2]
[407170478,1772467851318,-5742.6,0.00013698,2]
[407170480,1772467851328,-544.94,0.00013698,2]
[407170483,1772467851338,-500.0,0.00013698,2]
[407170484,1772467851347,-1162.97,0.00013698,2]
[407170486,1772467851358,-1175.3,0.00013698,2]
[407170489,1772467851369,-397.54101059,0.00013698,2]
[407170491,1772467851378,-500.0,0.00013698,2]
[407170492,1772467851388,-1068.03,0.00013698,2]
[407170494,1772467851397,-753.78,0.00013698,2]
[407170496,1772467851407,-500.0,0.00013698,2]
[407170498,1772467851416,-500.0,0.00013698,2]
[407170500,1772467851426,-762.56,0.00013698,2]
[407170502,1772467851436,-2150.08,0.00013698,2]
[407170504,1772467851446,-500.0,0.00013698,2]
[407170506,1772467851455,-500.0,0.00013698,2]
[407170508,1772467851464,-500.0,0.00013698,2]
[407170510,1772467851474,-500.0,0.00013698,2]
[407170512,1772467851485,-500.0,0.00013698,2]
[407170514,1772467851494,-151.0,0.00013698,2]
[407170516,1772467851504,-151.0,0.00013698,2]
[407170518,1772467851514,-500.0,0.00013698,2]
[407170520,1772467851525,-151.0,0.00013698,2]
[407170522,1772467851535,-151.0,0.00013698,2]
[407170524,1772467851544,-151.0,0.00013698,2]
[407170526,1772467851554,-242.0,0.00013698,2]
[407170528,1772467851565,-919.94,0.00013698,2]
[407170530,1772467851574,-2755.9,0.00013698,2]
[407170532,1772467851584,-330.9826484,0.00013698,2]
[407170534,1772467851594,-702.32,0.00013698,2]
[407170536,1772467851604,-500.0,0.00013698,2]
[407170538,1772467851613,-1109.09,0.00013698,2]
[407170540,1772467851623,-500.0,0.00013698,2]
[407170542,1772467851633,-500.0,0.00013698,2]
[407170544,1772467851642,-1453.86,0.00013698,2]
[407170546,1772467851652,-333.34902227,0.00013698,2]
[407170547,1772467851663,-563.69,0.00013698,2]
[407170549,1772467851673,-500.0,0.00013698,2]
[407170551,1772467851682,-380.97031117,0.00013698,2]
[407170553,1772467851692,-500.0,0.00013698,2]
[407170555,1772467851701,-500.0,0.00013698,2]
[407170557,1772467851711,-738.58,0.00013698,2]
[407170559,1772467851720,-524.11,0.00013698,2]
[407170561,1772467851730,-1062.04,0.00013698,2]
[407170563,1772467851739,-1095.52,0.00013698,2]
[407170565,1772467851750,-500.0,0.00013698,2]
[407170567,1772467851761,-500.0,0.00013698,2]
[407170568,1772467851772,-500.0,0.00013698,2]
[407170570,1772467851782,-1618.5,0.00013698,2]
[407170572,1772467851792,-500.0,0.00013698,2]
[407170574,1772467851802,-873.28,0.00013698,2]
[407170581,1772467851937,-500.0,0.00013698,2]
[407170582,1772467851964,-500.0,0.00013698,2]
[407170583,1772467851974,-1119.99,0.00013698,2]
[407170584,1772467851984,-1491.97,0.00013698,2]
[407170585,1772467851994,-506.47,0.00013698,2]
[407170586,1772467852004,-500.0,0.00013698,2]
[407170587,1772467852014,-505.78392907,0.00013698,2]
[407170588,1772467852027,-500.0,0.00013698,2]
[407170589,1772467852038,-2929.02,0.00013698,2]
[407170590,1772467852048,-500.0,0.00013698,2]
[407170591,1772467852058,-500.0,0.00013698,2]
[407170592,1772467852068,-907.75,0.00013698,2]
[407170594,1772467852078,-500.0,0.00013698,2]
[407170596,1772467852088,-819.36,0.00013698,2]
[407170598,1772467852098,-500.0,0.00013698,2]
[407170600,1772467852108,-500.0,0.00013698,2]
[407170602,1772467852118,-3173.88,0.00013698,2]
[407170604,1772467852128,-500.0,0.00013698,2]
[407170606,1772467852137,-1000.0,0.00013698,2]
[407170608,1772467852147,-564.28274743,0.00013698,2]
[407170610,1772467852156,-1026.78,0.00013698,2]
[407170612,1772467852167,-500.0,0.00013698,2]
[407170614,1772467852176,-500.0,0.00013698,2]
[407170616,1772467852186,-500.0,0.00013698,2]
[407170618,1772467852195,-500.0,0.00013698,2]
[407170620,1772467852205,-430.0983781,0.00013698,2]
[407170622,1772467852214,-627.26,0.00013698,2]
[407170624,1772467852224,-2710.69,0.00013698,2]
[407170626,1772467852233,-500.0,0.00013698,2]
[407170628,1772467852243,-500.0,0.00013698,2]
[407170630,1772467852252,-500.0,0.00013698,2]
[407170632,1772467852262,-500.0,0.00013698,2]
[407170634,1772467852271,-500.0,0.00013698,2]
[407170636,1772467852280,-235.87,0.00013698,2]
[407170638,1772467852290,-500.0,0.00013698,2]
[407170639,1772467852300,-789.97,0.00013698,2]
[407170641,1772467852309,-1123.43,0.00013698,2]
[407170643,1772467852318,-688.07,0.00013698,2]
[407170645,1772467852328,-500.0,0.00013698,2]
[407170647,1772467852350,-500.0,0.00013698,2]
[407170649,1772467852371,-525.2,0.00013698,2]
[407170651,1772467852393,-500.0,0.00013698,2]
[407170653,1772467852412,-520.44,0.00013698,2]
[407170655,1772467852422,-500.0,0.00013698,2]
[407170657,1772467852431,-628.60424105,0.00013698,2]
[407170659,1772467852441,-3948.78,0.00013698,2]
[407170661,1772467852450,-1799.88,0.00013698,2]
[407170663,1772467852460,-500.0,0.00013698,2]
[407170665,1772467852470,-1353.54,0.00013698,2]
[407170667,1772467852480,-2221.83,0.00013698,2]
[407170669,1772467852490,-500.0,0.00013698,2]
[407170671,1772467852500,-500.0,0.00013698,2]
[407170673,1772467852509,-2890.84,0.00013698,2]
[407170675,1772467852519,-500.0,0.00013698,2]
[407170677,1772467852529,-500.0,0.00013698,2]
[407170679,1772467852538,-500.0,0.00013698,2]
[407170681,1772467852548,-605.67,0.00013698,2]
[407170683,1772467852558,-522.89,0.00013698,2]
[407170685,1772467852567,-500.0,0.00013698,2]
[407170687,1772467852577,-1275.5,0.00013698,2]
[407170688,1772467852586,-500.0,0.00013698,2]
[407170690,1772467852596,-505.19,0.00013698,2]
[407170692,1772467852605,-1196.42,0.00013698,2]
[407170694,1772467852615,-1119.24,0.00013698,2]
[407170696,1772467852623,-500.0,0.00013698,2]
[407170698,1772467852635,-645.0252689,0.00013698,2]
[407170700,1772467852645,-500.0,0.00013698,2]
[407170702,1772467852656,-500.0,0.00013698,2]
[407170704,1772467852665,-2174.43,0.00013698,2]
[407170705,1772467852675,-500.0,0.00013698,2]
[407170707,1772467852684,-1430.22,0.00013698,2]
[407170710,1772467852695,-628.57,0.00013698,2]
[407170711,1772467852704,-2183.92,0.00013698,2]
[407170713,1772467852712,-500.0,0.00013698,2]
[407170715,1772467852722,-500.0,0.00013698,2]
[407170717,1772467852732,-500.0,0.00013698,2]
[407170719,1772467852742,-285.6353957,0.00013698,2]
[407170721,1772467852756,-500.0,0.00013698,2]
[407170723,1772467852765,-500.0,0.00013698,2]
[407170725,1772467852776,-500.0,0.00013698,2]
[407170727,1772467852786,-1420.18,0.00013698,2]
[407170729,1772467852798,-500.0,0.00013698,2]
[407170731,1772467852808,-500.0,0.00013698,2]
[407170733,1772467852819,-500.0,0.00013698,2]
[407170735,1772467852829,-3972.69,0.00013698,2]
[407170737,1772467852838,-500.0,0.00013698,2]
[407170739,1772467852849,-500.0,0.00013698,2]
[407170741,1772467852859,-500.0,0.00013698,2]
[407170742,1772467852869,-693.49,0.00013698,2]
[407170744,1772467852879,-1393.14,0.00013698,2]
[407170746,1772467852889,-500.0,0.00013698,2]
[407170748,1772467852898,-500.0,0.00013698,2]
[407170750,1772467852909,-1291.36,0.00013698,2]
[407170752,1772467852919,-500.0,0.00013698,2]
[407170754,1772467852930,-500.0,0.00013698,2]
[407170756,1772467852939,-500.0,0.00013698,2]
[407170758,1772467852949,-500.0,0.00013698,2]
[407170760,1772467852958,-500.0,0.00013698,2]
[407170762,1772467852968,-500.0,0.00013698,2]
[407170764,1772467852978,-1064.7,0.00013698,2]
[407170766,1772467852987,-500.0,0.00013698,2]
[407170768,1772467852997,-865.98,0.00013698,2]
[407170770,1772467853006,-2080.57,0.00013698,2]
[407170772,1772467853015,-500.0,0.00013698,2]
[407170773,1772467853025,-500.0,0.00013698,2]
[407170775,1772467853033,-500.0,0.00013698,2]
[407170777,1772467853042,-500.0,0.00013698,2]
[407170779,1772467853052,-500.0,0.00013698,2]
[407170781,1772467853061,-257.7090843,0.00013698,2]
[407170783,1772467853070,-695.27,0.00013698,2]
[407170785,1772467853080,-500.0,0.00013698,2]
[407170787,1772467853090,-500.0,0.00013698,2]
[407170789,1772467853099,-614.42,0.00013698,2]
[407170791,1772467853108,-500.0,0.00013698,2]
[407170792,1772467853118,-500.0,0.00013698,2]
[407170794,1772467853127,-500.0,0.00013698,2]
[407170796,1772467853137,-500.0,0.00013698,2]
[407170798,1772467853146,-500.0,0.00013698,2]
[407170800,1772467853154,-500.0,0.00013698,2]
[407170802,1772467853163,-961.29,0.00013698,2]
[407170804,1772467853171,-500.0,0.00013698,2]
[407170806,1772467853181,-500.0,0.00013698,2]
[407170808,1772467853190,-200.02522278,0.00013698,2]
[407170809,1772467853198,-500.0,0.00013698,2]
[407170811,1772467853206,-500.0,0.00013698,2]
[407170813,1772467853215,-543.04,0.00013698,2]
[407170815,1772467853225,-297.07799692,0.00013698,2]
[407170817,1772467853234,-1359.53,0.00013698,2]
[407170819,1772467853243,-500.0,0.00013698,2]
[407170821,1772467853253,-567.38,0.00013698,2]
[407170823,1772467853263,-500.0,0.00013698,2]
[407170825,1772467853272,-1375.32,0.00013698,2]
[407170827,1772467853283,-500.0,0.00013698,2]
[407170829,1772467853292,-500.0,0.00013698,2]
[407170831,1772467853302,-153.60585123,0.00013698,2]
[407170833,1772467853311,-302.0,0.00013698,2]
[407170834,1772467853321,-503.43,0.00013698,2]
[407170837,1772467853331,-1491.12,0.00013698,2]
[407170838,1772467853340,-803.92,0.00013698,2]
[407170840,1772467853349,-7158.32,0.00013698,2]
[407170842,1772467853359,-500.0,0.00013698,2]
[407170844,1772467853369,-564.59,0.00013698,2]
[407170846,1772467853378,-1118.09,0.00013698,2]
[407170848,1772467853388,-500.0,0.00013698,2]
[407170850,1772467853397,-500.0,0.00013698,2]
[407170852,1772467853407,-709.88,0.00013698,2]
[407170854,1772467853416,-1864.12,0.00013698,2]
[407170856,1772467853425,-614.47,0.00013698,2]
[407170858,1772467853434,-613.33,0.00013698,2]
[407170860,1772467853443,-5256.86,0.00013698,2]
[407170862,1772467853452,-500.0,0.00013698,2]
[407170864,1772467853462,-500.0,0.00013698,2]
[407170865,1772467853471,-556.48,0.00013698,2]
[407170867,1772467853482,-500.0,0.00013698,2]
[407170869,1772467853491,-500.0,0.00013698,2]
[407170871,1772467853500,-667.07,0.00013698,2]
[407170873,1772467853509,-500.0,0.00013698,2]
[407170875,1772467853519,-942.04,0.00013698,2]
[407170877,1772467853528,-1561.97,0.00013698,2]
[407170879,1772467853537,-500.0,0.00013698,2]
[407170880,1772467853546,-1245.81,0.00013698,2]
[407170883,1772467853556,-500.0,0.00013698,2]
[407170884,1772467853565,-500.0,0.00013698,2]
[407170886,1772467853575,-1969.66,0.00013698,2]
[407170888,1772467853584,-4686.9,0.00013698,2]
[407170890,1772467853594,-2287.62,0.00013698,2]
[407170892,1772467853602,-500.0,0.00013698,2]
[407170894,1772467853611,-500.0,0.00013698,2]
[407170896,1772467853621,-500.0,0.00013698,2]
[407170898,1772467853631,-1834.82,0.00013698,2]
[407170900,1772467853640,-782.24,0.00013698,2]
[407170902,1772467853649,-2463.06,0.00013698,2]
[407170904,1772467853658,-622.91,0.00013698,2]
[407170906,1772467853667,-500.0,0.00013698,2]
[407170908,1772467853689,-745.07,0.00013698,2]
[407170910,1772467853698,-500.0,0.00013698,2]
[407170912,1772467853708,-500.0,0.00013698,2]
[407170913,1772467853717,-500.0,0.00013698,2]
[407170915,1772467853728,-500.0,0.00013698,2]
[407170917,1772467853737,-500.0,0.00013698,2]
[407170919,1772467853746,-358.16219209,0.00013698,2]
[407170921,1772467853757,-507.41198258,0.00013698,2]
[407170923,1772467853771,-500.0,0.00013698,2]
[407170925,1772467853781,-1187.74,0.00013698,2]
[407170927,1772467853790,-2401.0,0.00013698,2]
[407170929,1772467853800,-500.0,0.00013698,2]
[407170945,1772467853946,-610.15,0.00013698,2]
[407170947,1772467853957,-7693.51,0.00013698,2]
[407170949,1772467853967,-270.094939,0.00013698,2]
[407170951,1772467853978,-500.0,0.00013698,2]
[407170953,1772467853987,-500.0,0.00013698,2]
[407170955,1772467853997,-560.10538784,0.00013698,2]
[407170957,1772467854007,-500.0,0.00013698,2]
[407170959,1772467854017,-500.0,0.00013698,2]
[407170961,1772467854026,-500.0,0.00013698,2]
[407170963,1772467854036,-500.0,0.00013698,2]
[407170964,1772467854045,-1376.76,0.00013698,2]
[407170966,1772467854054,-1773.59,0.00013698,2]
[407170968,1772467854063,-1200.28,0.00013698,2]
[407170970,1772467854073,-500.0,0.00013698,2]
[407170972,1772467854083,-500.0,0.00013698,2]
[407170974,1772467854092,-500.0,0.00013698,2]
[407170976,1772467854100,-500.0,0.00013698,2]
[407170978,1772467854111,-500.0,0.00013698,2]
[407170980,1772467854120,-510.50659105,0.00013698,2]
[407170982,1772467854130,-709.74,0.00013698,2]
[407170984,1772467854140,-1357.41,0.00013698,2]
[407170986,1772467854149,-2252.68,0.00013698,2]
[407170988,1772467854159,-500.0,0.00013698,2]
[407170990,1772467854168,-500.0,0.00013698,2]
[407170992,1772467854178,-500.0,0.00013698,2]
[407170994,1772467854188,-3400.94,0.00013698,2]
[407170996,1772467854200,-500.0,0.00013698,2]
[407170998,1772467854210,-500.0,0.00013698,2]
[407171000,1772467854219,-523.63623642,0.00013698,2]
[407171002,1772467854227,-500.0,0.00013698,2]
[407171004,1772467854236,-500.0,0.00013698,2]
[407171006,1772467854244,-500.0,0.00013698,2]
[407171008,1772467854253,-500.0,0.00013698,2]
[407171009,1772467854263,-500.0,0.00013698,2]
[407171011,1772467854272,-500.0,0.00013698,2]
[407171013,1772467854282,-2969.47,0.00013698,2]
[407171015,1772467854291,-500.0,0.00013698,2]
[407171017,1772467854301,-247.6037651,0.00013698,2]
[407171019,1772467854310,-500.0,0.00013698,2]
[407171021,1772467854319,-2932.65,0.00013698,2]
[407171023,1772467854328,-575.86000546,0.00013698,2]
[407171024,1772467854338,-919.48,0.00013698,2]
[407171026,1772467854348,-500.0,0.00013698,2]
[407171027,1772467854357,-663.05,0.00013698,2]
[407171028,1772467854365,-500.0,0.00013698,2]
[407171029,1772467854374,-959.01,0.00013698,2]
[407171030,1772467854384,-500.0,0.00013698,2]
[407171031,1772467854394,-723.58,0.00013698,2]
[407171032,1772467854404,-812.41,0.00013698,2]
[407171033,1772467854414,-500.0,0.00013698,2]
[407171034,1772467854423,-500.0,0.00013698,2]
[407171035,1772467854433,-1159.88,0.00013698,2]
[407171036,1772467854443,-500.0,0.00013698,2]
[407171037,1772467854453,-2684.2,0.00013698,2]
[407171038,1772467854463,-504.40154146,0.00013698,2]
[407171039,1772467854472,-500.0,0.00013698,2]
[407171040,1772467854482,-500.0,0.00013698,2]
[407171041,1772467854491,-891.06,0.00013698,2]
[407171042,1772467854501,-500.0,0.00013698,2]
[407171043,1772467854510,-512.94277529,0.00013698,2]
[407171044,1772467854520,-8862.41,0.00013698,2]
[407171045,1772467854529,-892.06,0.00013698,2]
[407171046,1772467854539,-455.21956244,0.00013698,2]
[407171047,1772467854548,-500.0,0.00013698,2]
[407171048,1772467854558,-998.16,0.00013698,2]
[407171049,1772467854567,-563.19,0.00013698,2]
[407171050,1772467854576,-2099.77,0.00013698,2]
[407171051,1772467854587,-1715.57,0.00013698,2]
[407171052,1772467854596,-500.0,0.00013698,2]
[407171053,1772467854606,-248.69032725,0.00013698,2]
[407171054,1772467854616,-1211.24,0.00013698,2]
[407171055,1772467854626,-500.0,0.00013698,2]
[407171056,1772467854637,-500.0,0.00013698,2]
[407171057,1772467854647,-500.0,0.00013698,2]
[407171058,1772467854657,-500.0,0.00013698,2]
[407171059,1772467854667,-500.0,0.00013698,2]
[407171060,1772467854677,-500.0,0.00013698,2]
[407171061,1772467854687,-500.0,0.00013698,2]
[407171062,1772467854698,-1117.65,0.00013698,2]
[407171063,1772467854708,-500.0,0.00013698,2]
[407171064,1772467854718,-500.0,0.00013698,2]
[407171066,1772467854727,-500.0,0.00013698,2]
[407171067,1772467854737,-3489.46,0.00013698,2]
[407171068,1772467854747,-895.74,0.00013698,2]
[407171070,1772467854757,-10847.41,0.00013698,2]
[407171072,1772467854770,-982.75,0.00013698,2]
[407171074,1772467854780,-500.0,0.00013698,2]
[407171077,1772467854805,-500.0,0.00013698,2]
[407171080,1772467854821,-46274.75,0.00013698,2]
[407171083,1772467854844,-635.24,0.00013698,2]
[407171086,1772467854865,-500.0,0.00013698,2]
[407171089,1772467854882,-513.95,0.00013698,2]
[407171092,1772467854899,-500.0,0.00013698,2]
[407171095,1772467854919,-524.94,0.00013698,2]
[407171098,1772467854936,-2992.47,0.00013698,2]
[407171101,1772467854955,-781.73,0.00013698,2]
[407171104,1772467854975,-1213.97,0.00013698,2]
[407171106,1772467854993,-500.0,0.00013698,2]
[407171109,1772467855008,-500.0,0.00013698,2]
[407171112,1772467855028,-21705.88,0.00013698,2]
[407171115,1772467855045,-500.0,0.00013698,2]
[407171117,1772467855060,-500.0,0.00013698,2]
[407171120,1772467855077,-5550.5,0.00013698,2]
[407171122,1772467855094,-500.0,0.00013698,2]
[407171125,1772467855109,-3621.27,0.00013698,2]
[407171127,1772467855126,-500.0,0.00013698,2]
[407171130,1772467855142,-500.0,0.00013698,2]
[407171132,1772467855158,-500.0,0.00013698,2]
[407171135,1772467855175,-500.0,0.00013698,2]
[407171138,1772467855196,-500.0,0.00013698,2]
[407171140,1772467855212,-883.44,0.00013698,2]
[407171143,1772467855228,-2610.59,0.00013698,2]
[407171146,1772467855244,-640.03,0.00013698,2]
[407171148,1772467855260,-1673.46,0.00013698,2]
[407171151,1772467855276,-500.0,0.00013698,2]
[407171153,1772467855291,-500.0,0.00013698,2]
[407171156,1772467855308,-500.0,0.00013698,2]
[407171159,1772467855325,-500.0,0.00013698,2]
[407171161,1772467855340,-1288.2,0.00013698,2]
[407171164,1772467855355,-582.1,0.00013698,2]
[407171166,1772467855371,-500.0,0.00013698,2]
[407171169,1772467855387,-500.0,0.00013698,2]
[407171172,1772467855405,-549.94511699,0.00013698,2]
[407171174,1772467855420,-500.0,0.00013698,2]
[407171177,1772467855436,-3022.22,0.00013698,2]
[407171180,1772467855452,-500.0,0.00013698,2]
[407171182,1772467855467,-270.15600587,0.00013698,2]
[407171185,1772467855483,-500.0,0.00013698,2]
[407171188,1772467855498,-2246.5,0.00013698,2]
[407171190,1772467855515,-500.0,0.00013698,2]
[407171193,1772467855530,-3987.6,0.00013698,2]
[407171195,1772467855547,-500.0,0.00013698,2]
[407171198,1772467855563,-742.92,0.00013698,2]
[407171201,1772467855578,-500.0,0.00013698,2]
[407171203,1772467855599,-856.63,0.00013698,2]
[407171206,1772467855614,-500.0,0.00013698,2]
[407171208,1772467855629,-500.0,0.00013698,2]
[407171211,1772467855644,-500.0,0.00013698,2]
[407171214,1772467855661,-1200.98,0.00013698,2]
[407171216,1772467855676,-500.0,0.00013698,2]
[407171219,1772467855691,-1872.11,0.00013698,2]
[407171221,1772467855706,-592.63,0.00013698,2]
[407171224,1772467855722,-701.79,0.00013698,2]
[407171227,1772467855738,-500.0,0.00013698,2]
[407171229,1772467855754,-500.0,0.00013698,2]
[407171232,1772467855772,-2960.76,0.00013698,2]
[407171234,1772467855786,-534.63020016,0.00013698,2]
[407171237,1772467855801,-500.0,0.00013698,2]
[407171239,1772467855815,-500.0,0.00013698,2]
[407171242,1772467855829,-638.01,0.00013698,2]
[407171244,1772467855845,-500.0,0.00013698,2]
[407171247,1772467855862,-500.0,0.00013698,2]
[407171249,1772467855878,-2520.63,0.00013698,2]
[407171252,1772467855893,-702.21,0.00013698,2]
[407171254,1772467855909,-8147.89,0.00013698,2]
[407171257,1772467855926,-500.0,0.00013698,2]
[407171260,1772467855943,-1906.37,0.00013698,2]
[407171262,1772467855959,-500.0,0.00013698,2]
[407171265,1772467855975,-9160.61,0.00013698,2]
[407171268,1772467855992,-500.0,0.00013698,2]
[407171270,1772467856008,-500.0,0.00013698,2]
[407171273,1772467856025,-2066.31,0.00013698,2]
[407171276,1772467856042,-2052.12,0.00013698,2]
[407171278,1772467856057,-659.04,0.00013698,2]
[407171281,1772467856073,-500.0,0.00013698,2]
[407171283,1772467856088,-500.0,0.00013698,2]
[407171286,1772467856106,-359.99146307,0.00013698,2]
[407171289,1772467856122,-476.37205847,0.00013698,2]
[407171291,1772467856136,-500.0,0.00013698,2]
[407171294,1772467856153,-862.63,0.00013698,2]
[407171296,1772467856168,-14189.98,0.00013698,2]
[407171320,1772467856377,-655.37,0.00013698,2]
[407171322,1772467856394,-500.0,0.00013698,2]
[407171324,1772467856404,-500.0,0.00013698,2]
[407171327,1772467856414,-500.0,0.00013698,2]
[407171328,1772467856423,-500.0,0.00013698,2]
[407171330,1772467856433,-2085.44,0.00013698,2]
[407171333,1772467856443,-630.31,0.00013698,2]
[407171334,1772467856452,-539.29219829,0.00013698,2]
[407171337,1772467856462,-2059.42,0.00013698,2]
[407171339,1772467856472,-784.69,0.00013698,2]
[407171341,1772467856482,-7801.91,0.00013698,2]
[407171342,1772467856491,-500.0,0.00013698,2]
[407171344,1772467856501,-704.84,0.00013698,2]
[407171346,1772467856510,-500.0,0.00013698,2]
[407171348,1772467856519,-500.0,0.00013698,2]
[407171350,1772467856529,-1960.7,0.00013698,2]
[407171352,1772467856540,-1642.05,0.00013698,2]
[407171354,1772467856550,-2287.68,0.00013698,2]
[407171356,1772467856559,-1079.66,0.00013698,2]
[407171358,1772467856569,-500.0,0.00013698,2]
[407171360,1772467856579,-500.0,0.00013698,2]
[407171362,1772467856588,-500.0,0.00013698,2]
[407171364,1772467856597,-1317.46,0.00013698,2]
[407171366,1772467856607,-500.0,0.00013698,2]
[407171368,1772467856616,-979.39,0.00013698,2]
[407171370,1772467856625,-550.81078692,0.00013698,2]
[407171372,1772467856634,-998.05,0.00013698,2]
[407171374,1772467856644,-500.0,0.00013698,2]
[407171376,1772467856654,-2156.2,0.00013698,2]
[407171378,1772467856663,-2742.82,0.00013698,2]
[407171380,1772467856672,-18045.8,0.00013698,2]
[407171382,1772467856681,-516.03263791,0.00013698,2]
[407171384,1772467856690,-500.0,0.00013698,2]
[407171386,1772467856701,-500.0,0.00013698,2]
[407171388,1772467856711,-500.0,0.00013698,2]
[407171390,1772467856723,-500.0,0.00013698,2]
[407171392,1772467856733,-500.0,0.00013698,2]
[407171394,1772467856744,-682.3,0.00013698,2]
[407171396,1772467856758,-500.0,0.00013698,2]
[407171398,1772467856768,-10974.74,0.00013698,2]
[407171400,1772467856777,-500.0,0.00013698,2]
[407171402,1772467856786,-1971.77,0.00013698,2]
[407171404,1772467856798,-500.0,0.00013698,2]
[407171406,1772467856807,-500.0,0.00013698,2]
[407171408,1772467856817,-500.0,0.00013698,2]
[407171410,1772467856827,-886.39,0.00013698,2]
[407171412,1772467856837,-843.9,0.00013698,2]
[407171414,1772467856846,-500.0,0.00013698,2]
[407171416,1772467856856,-500.0,0.00013698,2]
[407171418,1772467856865,-605.31,0.00013698,2]
[407171420,1772467856875,-500.0,0.00013698,2]
[407171422,1772467856884,-500.0,0.00013698,2]
[407171424,1772467856893,-930.9,0.00013698,2]
[407171426,1772467856903,-5376.3,0.00013698,2]
[407171428,1772467856912,-500.0,0.00013698,2]